Workbook

Sheet ORÇAMENTO
A1: <---- NUMERAR SERVIÇOS PARA CPU | C1: Ministério do Desenvolvimento Regional
C2: Companhia de Desenvolvimento dos Vales do São Francisco e do Parnaíba
C3: 1ª Superintendência Regional
B5: OBRA: | C5: PAVIMENTAÇÃO ASFÁLTICA EM CBUQ – SAÍDA PARA COMUNIDADE DE SUCURIU DE BAIXO - ITEM 03 - (MORADA NOVA DE MINAS / MG)
B6: DATA: | C6: AGOSTO / 2023 | G6: BDI Serviços: | I6: ='BDI SERV'!D31/100 -> 0.2222
B7: PRAZO DE EXECUÇÃO: 120 DIAS | G7: BDI Serviços: | I7: ='BDI FORN'!D31/100 -> 0.15
B8: ITEM | C8: DISCRIMINAÇÃO | D8: REFER. | E8: UNID. | F8: QUANT. | G8: P. UNITÁRIO | H8: P.UNIT.C/ BDI | I8: P. TOTAL
A9: A | B9: 1 | C9: SERVIÇOS PRELIMINARES | I9: =SUM(I10:I16) -> 91125.81
A10: 1 | B10: 1.1 | C10: MOBILIZAÇÃO E DESMOBILIZAÇÃO | D10: CPU.1 | E10: GL | F10: 1 | G10: =VLOOKUP(A10,CPU!$A$1:$N$4656,9) -> 11856.48 | H10: =VLOOKUP(A10,CPU!$A$1:$N$4656,10) -> 14490.99 | I10: =ROUND(F10*H10,2) -> 14490.99
A11: 2 | B11: 1.2 | C11: ADMINISTRAÇÃO LOCAL | D11: CPU.2 | E11: GL | F11: 1 | G11: =VLOOKUP(A11,CPU!$A$1:$N$4656,9) -> 46517.68 | H11: =VLOOKUP(A11,CPU!$A$1:$N$4656,10) -> 56853.91 | I11: =ROUND(F11*H11,2) -> 56853.91
A12: 3 | B12: 1.3 | C12: CANTEIRO DE OBRAS | D12: CPU.3 | E12: GL | F12: 1 | G12: =VLOOKUP(A12,CPU!$A$1:$N$4656,9) -> 9957 | H12: =VLOOKUP(A12,CPU!$A$1:$N$4656,10) -> 12169.45 | I12: =ROUND(F12*H12,2) -> 12169.45
A13: 4 | B13: 1.4 | C13: PLACA DE OBRA EM CHAPA DE AÇO GALVANIZADO | D13: 103689 | E13: M2 | F13: 3 | G13: =VLOOKUP(A13,CPU!$A$1:$N$4656,9) -> 339.72 | H13: =VLOOKUP(A13,CPU!$A$1:$N$4656,10) -> 415.21 | I13: =ROUND(F13*H13,2) -> 1245.63
A14: 5 | B14: 1.5 | C14: SERVIÇOS TOPOGRÁFICOS PARA PAVIMENTAÇÃO, INCLUSIVE NOTA DE SERVIÇO, ACOMPANHAMENTO E GREIDE | D14: 78472 | E14: M2 | F14: 7099.997 | G14: =VLOOKUP(A14,CPU!$A$1:$N$4656,9) -> 0.33 | H14: =VLOOKUP(A14,CPU!$A$1:$N$4656,10) -> 0.4 | I14: =ROUND(F14*H14,2) -> 2840
A15: 5.1 | B15: 1.6 | C15: DESMATAMENTO, DESTOCAMENTO, LIMPEZA DE ÁREA E ESTOCAGEM DO MATERIAL DE LIMPEZA COM ARVORES DE DIÂMETRO ATÉ 0,15M | D15: 5501700 | E15: M2 | F15: 3000 | G15: =VLOOKUP(A15,CPU!$A$1:$N$4656,9) -> 0.1770097396 | H15: =VLOOKUP(A15,CPU!$A$1:$N$4656,10) -> 0.2163413038 | I15: =ROUND(F15*H15,2) -> 649.02
A16: 5.2 | B16: 1.7 | C16: DESTOCAMENTO DE ÁRVORES COM DIAMETRO DE 0,15M a 0,30M | D16: 5501701 | E16: UNID | F16: 180 | G16: =VLOOKUP(A16,CPU!$A$1:$N$4656,9) -> 13.07662651 | H16: =VLOOKUP(A16,CPU!$A$1:$N$4656,10) -> 15.98225292 | I16: 2876.81
A17: B | B17: 2 | C17: PAVIMENTAÇÃO | I17: =SUM(I18:I25) -> 133600.8
A18: 6 | B18: 2.1 | C18: ESCAVAÇÃO HORIZONTAL EM SOLO DE 1A CATEGORIA | D18: 101116 | E18: M3 | F18: 3000.0008 | G18: =VLOOKUP(A18,CPU!$A$1:$N$4656,9) -> 2.03 | H18: =VLOOKUP(A18,CPU!$A$1:$N$4656,10) -> 2.48 | I18: =ROUND(F18*H18,2) -> 7440
A19: 7 | B19: 2.2 | C19: CARGA, MANOBRA E DESCARGA DE SOLOS E MATERIAIS GRANULARES EM CAMINHÃO BASCULANTE | D19: 100976 | E19: M3 | F19: 3000.0008 | G19: =VLOOKUP(A19,CPU!$A$1:$N$4656,9) -> 7.99 | H19: =VLOOKUP(A19,CPU!$A$1:$N$4656,10) -> 9.77 | I19: 29310.01
A20: 8 | B20: 2.3 | C20: REGULARIZAÇÃO E COMPACTAÇÃO DO SUBLEITO | D20: 100577 | E20: M2 | F20: 7000 | G20: =VLOOKUP(A20,CPU!$A$1:$N$4656,9) -> 1.13 | H20: =VLOOKUP(A20,CPU!$A$1:$N$4656,10) -> 1.38 | I20: 9660
B21: 2.4 | C21: CASCALHO DE CAVA - EXCLUSIVE TRANSPORTE | D21: - | E21: M3 | F21: 1450 | G21: FORNECIDO PELA PREFEITURA | I21: -
A22: 9 | B22: 2.5 | C22: EXECUÇÃO E COMPACTAÇÃO DE BASE E OU SUB BASE PARA PAVIMENTAÇÃO EM CASCALHO - EXCLUSIVE SOLO, ESCAVAÇÃO, CARGA E TRANSPORTE. | D22: 96388 | E22: M3 | F22: 1449.998 | G22: =VLOOKUP(A22,CPU!$A$1:$N$4656,9) -> 12.99 | H22: =VLOOKUP(A22,CPU!$A$1:$N$4656,10) -> 15.88 | I22: 23025.97
A23: 10 | B23: 2.6 | C23: IMPRIMAÇÃO COM EMULSÃO ASFÁLTICA (EAI) | D23: 96401 | E23: M2 | F23: 7000 | G23: =VLOOKUP(A23,CPU!$A$1:$N$4656,9) -> 1.12 | H23: =VLOOKUP(A23,CPU!$A$1:$N$4656,10) -> 1.37 | I23: 9590
A24: 11 | B24: 2.7 | C24: PINTURA DE LIGAÇÃO COM EMULSÃO ASFÁLTICA RR-1C | D24: 96402 | E24: M2 | F24: 6250 | G24: =VLOOKUP(A24,CPU!$A$1:$N$4656,9) -> 0.93 | H24: =VLOOKUP(A24,CPU!$A$1:$N$4656,10) -> 1.14 | I24: 7125
A25: 12 | B25: 2.8 | C25: EXECUÇÃO DE PAVIMENTO COM APLICAÇÃO DE CONCRETO ASFÁLTICO USINADO A QUENTE (CBUQ), CAMADA DE ROLAMENTO - EXCLUSIVE TRANSPORTE | D25: 95995 | E25: M3 | F25: 320.0015 | G25: =VLOOKUP(A25,CPU!$A$1:$N$4656,9) -> 121.32 | H25: =VLOOKUP(A25,CPU!$A$1:$N$4656,10) -> 148.28 | I25: 47449.82
A26: C | B26: 3 | C26: TRANSPORTE DE MATERIAIS | I26: =SUM(I27:I28) -> 87103.02
A27: 13 | B27: 3.1 | C27: TRANSPORTE COM CAMINHÃO BASCULANTE, EM VIA URBANA PAVIMENTADA | D27: 95877 | E27: M3XKM | F27: 44000.00435 | G27: =VLOOKUP(A27,CPU!$A$1:$N$4656,9) -> 1.61 | H27: =VLOOKUP(A27,CPU!$A$1:$N$4656,10) -> 1.97 | I27: =ROUND(F27*H27,2) -> 86680.01
A28: 14 | B28: 3.2 | C28: TRANSPORTE COM CAMINHÃO CARROCERIA 9T, EM VIA URBANA PAVIMENTADA | D28: 100947 | E28: TXKM | F28: 180.003533 | G28: =VLOOKUP(A28,CPU!$A$1:$N$4656,9) -> 1.92 | H28: =VLOOKUP(A28,CPU!$A$1:$N$4656,10) -> 2.35 | I28: =ROUND(F28*H28,2) -> 423.01
A29: D | B29: 4 | C29: TRANSPORTE DE MATERIAL ASFÁLTICO (BDI DIFERENCIADO) | I29: =SUM(I30:I31) -> 109890
A30: 15 | B30: 4.1 | C30: TRANSPORTE DE MASSA ASFÁLTICA COM CAMINHÃO BASCULANTE, EM VIA URBANA PAVIMENTADA (BDI DIFERENCIADO) | D30: 95427 | E30: TXKM | F30: 144000 | G30: =VLOOKUP(A30,CPU!$A$1:$N$4656,9) -> 0.65 | H30: =VLOOKUP(A30,CPU!$A$1:$N$4656,10) -> 0.75 | I30: =ROUND(F30*H30,2) -> 108000
A31: 16 | B31: 4.2 | C31: TRANSPORTE COM CAMINHÃO TANQUE DE TRANSPORTE DE MATERIAL ASFÁLTICO DE 30000 L, EM VIA URBANA PAVIMENTADA (BDI DIFERENCIADO) | D31: 102331 | E31: TXKM | F31: 3500 | G31: =VLOOKUP(A31,CPU!$A$1:$N$4656,9) -> 0.47 | H31: =VLOOKUP(A31,CPU!$A$1:$N$4656,10) -> 0.54 | I31: =ROUND(F31*H31,2) -> 1890
A32: E | B32: 5 | C32: OBRAS COMPLEMENTARES | I32: =SUM(I33:I34) -> 106608
A33: 17 | B33: 5.1 | C33: GUIA (MEIO-FIO) E SARJETA CONJUGADOS DE CONCRETO, MOLDADA IN LOCO EM TRECHO RETO COM EXTRUSORA, 45 CM BASE (15 CM BASE DA GUIA + SARJETA (30 X 0,05))X 22 CM ALTURA | D33: 94267a | E33: M | F33: 1450 | G33: =VLOOKUP(A33,CPU!$A$1:$N$4656,9) -> 47.91 | H33: =VLOOKUP(A33,CPU!$A$1:$N$4656,10) -> 58.56 | I33: =ROUND(F33*H33,2) -> 84912
A34: 18 | B34: 5.2 | C34: PINTURA DE EIXO VIÁRIO SOBRE ASFALTO COM TINTA RETRORREFLETIVA A BASE DE RESINA ACRÍLICA COM MICROESFERAS DE VIDRO, APLICAÇÃO MECÂNICA COM DEMARCADORA AUTOPROPELIDA - ESPESSURA DE 0,10 MM | D34: 102512 | E34: M | F34: 3200 | G34: =VLOOKUP(A34,CPU!$A$1:$N$4656,9) -> 5.55 | H34: =VLOOKUP(A34,CPU!$A$1:$N$4656,10) -> 6.78 | I34: 21696
A35: F | B35: 6 | C35: FORNECIMENTOS - MATERIAL ASFÁLTICO (BDI DIFERENCIADO) | I35: =SUM(I36:I38) -> 595258.77
A36: 19 | B36: 6.1 | C36: AQUISIÇÃO DE EMULSÃO ASFÁLTICA PARA IMPRIMAÇÃO (EAI) - EXCLUSIVE TRANSPORTE | D36: CPU.4 | E36: T | F36: 10 | G36: =VLOOKUP(A36,CPU!$A$1:$N$4656,9) -> 2769.65 | H36: =VLOOKUP(A36,CPU!$A$1:$N$4656,10) -> 3185.1 | I36: =ROUND(F36*H36,2) -> 31851
A37: 20 | B37: 6.2 | C37: AQUISIÇÃO DE EMULSAO ASFALTICA CATIONICA RR-1C - EXCLUSIVE TRANSPORTE | D37: CPU.5 | E37: T | F37: 3.0025 | G37: =VLOOKUP(A37,CPU!$A$1:$N$4656,9) -> 2837.6 | H37: =VLOOKUP(A37,CPU!$A$1:$N$4656,10) -> 3263.24 | I37: =ROUND(F37*H37,2) -> 9797.88
A38: 21 | B38: 6.3 | C38: AQUISIÇÃO DE CONCRETO BETUMINOSO USINADO A QUENTE (CBUQ) PARA PAVIMENTACAO ASFALTICA, PADRAO DNIT, FAIXA C, COM CAP 50/70 - EXCLUSIVE TRANSPORTE | D38: CPU.6 | E38: T | F38: 829.9998322 | G38: =VLOOKUP(A38,CPU!$A$1:$N$4656,9) -> 580 | H38: =VLOOKUP(A38,CPU!$A$1:$N$4656,10) -> 667 | I38: =ROUND(F38*H38,2) -> 553609.89
B39: TOTAL GERAL DA OBRA COM BDI | I39: =SUM(I9,I17,I26,I32,I35,I29) -> 1123586.4

Sheet CPU
A1: 1 | B1: CODEVASF | E1: COMPOSIÇÃO DE PREÇO UNITÁRIO | I1: =H11 -> 11856.48 | J1: =H13 -> 14490.99 | K1: BDI CALCULADO: | M1: =ORÇAMENTO!I6 -> 0.2222
B2: OBRA: | C2: =ORÇAMENTO!C5 -> PAVIMENTAÇÃO ASFÁLTICA EM CBUQ – SAÍDA PARA COMUNIDADE DE SUCURIU DE BAIXO - ITEM 03 - (MORADA NOVA DE MINAS / MG) | G2: DATA: | H2: =ORÇAMENTO!C6 -> AGOSTO / 2023 | K2: BDI DIFERENCIADO: | M2: ='BDI FORN'!D31/100 -> 0.15
B3: SERVIÇO: | C3: =VLOOKUP(A1,ORÇAMENTO!A10:I33,3) -> MOBILIZAÇÃO E DESMOBILIZAÇÃO | E3: Referência: | F3: =VLOOKUP(A1,ORÇAMENTO!$A$10:$I$33,4) -> CPU.1 | G3: UNIDADE: | H3: =VLOOKUP(A1,ORÇAMENTO!A10:I33,5) -> GL
B5: TIPO ITEM | C5: CODIGO ITEM | D5: DESCRIÇÃO ITEM | E5: UNIDADE ITEM | F5: COEFICIENTE | G5: PRECO UNITARIO | H5: CUSTO TOTAL
B6: COMPOSICAO | C6: 89876 | D6: CAMINHÃO BASCULANTE 14 M3, COM CAVALO MECÂNICO DE CAPACIDADE MÁXIMA DE TRAÇÃO COMBINADO DE 36000 KG, POTÊNCIA 286 CV, INCLUSIVE SEMIREBOQUE COM CAÇAMBA METÁLICA | E6: CHP DIURNO. | F6: 8 | G6: 286.2 | H6: =ROUNDDOWN(F6*G6,2) -> 2289.6
B7: COMPOSICAO | C7: 89877 | D7: CAMINHÃO BASCULANTE 14 M3, COM CAVALO MECÂNICO DE CAPACIDADE MÁXIMA DE TRAÇÃO COMBINADO DE 36000 KG, POTÊNCIA 286 CV, INCLUSIVE SEMIREBOQUE COM CAÇAMBA METÁLICA | E7: CHI DIURNO. | F7: 8 | G7: 82.81 | H7: =ROUNDDOWN(F7*G7,2) -> 662.48
B8: COMPOSICAO | C8: 5914640 | D8: TRANSPORTE COM CAVALO MECÂNICO COM SEMIRREBOQUE COM CAPACIDADE DE 30 T - RODOVIA PAVIMENTADA | E8: T.KM | F8: 4112 | G8: 0.57 | H8: =ROUNDDOWN(F8*G8,2) -> 2343.84
B9: COMPOSIÇÃO | C9: 88316 | D9: SERVENTE COM ENCARGOS COMPLEMENTARES | E9: H | F9: 32 | G9: 19.76 | H9: =ROUNDDOWN(F9*G9,2) -> 632.32
B10: PRODUÇÃO DA EQUIPE | E10: 0.5 | F10: CUSTO | H10: =SUM(H6:H9) -> 5928.24
B11: TOTAL | H11: =H10/E10 -> 11856.48 | I11: OK
B12: BDI % | H12: =1+$M$1 -> 1.2222
B13: TOTAL DO SERVIÇO - R$ | H13: =ROUND(H11*H12,2) -> 14490.99
A15: 2 | B15: CODEVASF | E15: COMPOSIÇÃO DE PREÇO UNITÁRIO | I15: =H30 -> 46517.68 | J15: =H32 -> 56853.91
B16: OBRA: | C16: =$C$2 -> PAVIMENTAÇÃO ASFÁLTICA EM CBUQ – SAÍDA PARA COMUNIDADE DE SUCURIU DE BAIXO - ITEM 03 - (MORADA NOVA DE MINAS / MG) | G16: DATA: | H16: =$H$2 -> AGOSTO / 2023
B17: SERVIÇO: | C17: =VLOOKUP(A15,ORÇAMENTO!$A$10:$I$33,3) -> ADMINISTRAÇÃO LOCAL | E17: SINAPI | F17: =VLOOKUP(A15,ORÇAMENTO!$A$10:$I$33,4) -> CPU.2 | G17: UNIDADE: | H17: =VLOOKUP(A15,ORÇAMENTO!$A$10:$I$33,5) -> GL
B19: TIPO ITEM | C19: CODIGO ITEM | D19: DESCRIÇÃO ITEM | E19: UNIDADE ITEM | F19: COEFICIENTE | G19: PRECO UNITARIO | H19: CUSTO TOTAL
B20: INSUMO | C20: 14250 | D20: ENERGIA ELÉTRICA | E20: kwh | F20: 40 | G20: 0.95 | H20: =ROUNDDOWN(F20*G20,2) -> 38
B21: INSUMO | C21: 44480 | D21: TARIFA "A" - ÁGUA/ESGOTO | E21: m³ | F21: =6 -> 6 | G21: 17.97 | H21: 107.82
B22: COTAÇÃO | C22: MERC. | D22: TELEFONE (PLANO CONTROLE) | E22: UNID | F22: 2 | G22: 59.9 | H22: 119.8
B23: INSUMO | C23: ED-50155 SEINFRA | D23: BANHEIRO QUÍMICO 110 X 120 X 230 CM COM MANUTENÇÃO (CONSIDERANDO OBRAS SIMULTÂNEAS) | E23: MÊS | F23: 2 | G23: 515 | H23: 1030
B24: COMPOSICAO | C24: 90777 | D24: Engenheiro Civil Júnior com encargos complementares | E24: H | F24: 30 | G24: 114.12 | H24: 3423.6
B25: COMPOSICAO | C25: 90776 | D25: Encarregado Geral com encargos complementares | E25: H | F25: 60 | G25: 57.73 | H25: 3463.8
B26: COMPOSICAO | C26: 88321 | D26: Tecnico de Laboratório com encargos complementares | E26: H | F26: 30 | G26: 45.45 | H26: 1363.5
B27: COMPOSICAO | C27: 100309 | D27: Tecnico em Segurança do Trabalho com encargos complementares | E27: H | F27: 30 | G27: 45.71 | H27: =ROUNDDOWN(F27*G27,2) -> 1371.3
B28: COMPOSICAO | C28: 90772 | D28: Auxiliar de escritório com encargos complementares | E28: H | F28: 30 | G28: 23.72 | H28: 711.6
B29: PRODUÇÃO DA EQUIPE | E29: =1/4 -> 0.25 | F29: CUSTO | H29: =SUM(H20:H28) -> 11629.42
B30: TOTAL | H30: =ROUND(H29/E29,2) -> 46517.68 | I30: OK
B31: BDI % | H31: =1+$M$1 -> 1.2222
B32: TOTAL DO SERVIÇO - R$ | H32: =ROUND(H30*H31,2) -> 56853.91
A34: =A15+1 -> 3 | B34: CODEVASF | E34: COMPOSIÇÃO DE PREÇO UNITÁRIO | I34: =H44 -> 9957 | J34: =H46 -> 12169.45
B35: OBRA: | C35: =$C$2 -> PAVIMENTAÇÃO ASFÁLTICA EM CBUQ – SAÍDA PARA COMUNIDADE DE SUCURIU DE BAIXO - ITEM 03 - (MORADA NOVA DE MINAS / MG) | G35: DATA: | H35: =$H$2 -> AGOSTO / 2023
B36: SERVIÇO: | C36: =VLOOKUP(A34,ORÇAMENTO!$A$10:$I$33,3) -> CANTEIRO DE OBRAS | E36: SINAPI | F36: =VLOOKUP(A34,ORÇAMENTO!$A$10:$I$33,4) -> CPU.3 | G36: UNIDADE: | H36: =VLOOKUP(A34,ORÇAMENTO!$A$10:$I$33,5) -> GL
B38: TIPO ITEM | C38: CODIGO ITEM | D38: DESCRIÇÃO ITEM | E38: UNIDADE ITEM | F38: COEFICIENTE | G38: PRECO UNITARIO | H38: CUSTO TOTAL
B39: INSUMO | C39: 10775 | D39: ALUGUEL DE IMÓVEL OU CONTEINER QUE ATENDA AOS REQUISITOS MÍNIMOS PARA INSTALAÇÃO DO CANTEIRO DE OBRAS | E39: MÊS | F39: 4 | G39: 995,00 | H39: =ROUNDDOWN(F39*G39,2) -> 3980
B40: INSUMO | C40: 10779 | D40: LOCACAO DE CONTAINER 2,30 X 4,30 M, ALT. 2,50 M, P/ SANITARIO, C/ 5 BACIAS, 1 LAVATORIO E 4 MICTORIOS | E40: MÊS | F40: 4 | G40: 1234.75 | H40: =ROUNDDOWN(F40*G40,2) -> 4939
B41: INSUMO | C41: 37525 | D41: TELA PLASTICA TECIDA LISTRADA BRANCA E LARANJA, TIPO GUARDA CORPO, EM POLIETILENO MONOFILADO, ROLO 1,20 X 50 M (L X C) | E41: M | F41: 200 | G41: 3.69 | H41: =ROUNDDOWN(F41*G41,2) -> 738
B42: COMPOSICAO | C42: - | D42: PLACA DE SINALIZAÇÃO - "PERIGO - OBRAS A FRENTE" - FORNECIMENTO E MOVIMENTAÇÃO | E42: UNID. | F42: 15 | G42: 20 | H42: =ROUNDDOWN(F42*G42,2) -> 300
B43: PRODUÇÃO DA EQUIPE | E43: 1 | F43: CUSTO | H43: =SUM(H39:H42) -> 9957
B44: TOTAL | H44: =H43/E43 -> 9957 | I44: OK
B45: BDI % | H45: =1+$M$1 -> 1.2222
B46: TOTAL DO SERVIÇO - R$ | H46: =ROUND(H44*H45,2) -> 12169.45
A48: =A34+1 -> 4 | B48: CODEVASF | E48: COMPOSIÇÃO DE PREÇO UNITÁRIO | I48: =H62 -> 339.72 | J48: =H64 -> 415.21
B49: OBRA: | C49: =$C$2 -> PAVIMENTAÇÃO ASFÁLTICA EM CBUQ – SAÍDA PARA COMUNIDADE DE SUCURIU DE BAIXO - ITEM 03 - (MORADA NOVA DE MINAS / MG) | G49: DATA: | H49: =$H$2 -> AGOSTO / 2023
B50: SERVIÇO: | C50: =VLOOKUP(A48,ORÇAMENTO!$A$10:$I$33,3) -> PLACA DE OBRA EM CHAPA DE AÇO GALVANIZADO | E50: SINAPI | F50: =VLOOKUP(A48,ORÇAMENTO!$A$10:$I$33,4) -> 103689 | G50: UNIDADE: | H50: =VLOOKUP(A48,ORÇAMENTO!$A$10:$I$33,5) -> M2
B52: TIPO ITEM | C52: CODIGO ITEM | D52: DESCRIÇÃO ITEM | E52: UNIDADE ITEM | F52: COEFICIENTE | G52: PRECO UNITARIO | H52: CUSTO TOTAL
B53: INSUMO | C53: 4509 | D53: SARRAFO *2,5 X 10* CM EM PINUS, MISTA OU EQUIVALENTE DA REGIAO - BRUTA | E53: M | F53: 3,2083000 | G53: 4,41 | H53: =ROUNDDOWN(F53*G53,2) -> 14.14
B54: INSUMO | C54: 4813 | D54: PLACA DE OBRA (PARA CONSTRUCAO CIVIL) EM CHAPA GALVANIZADA *N. 22*, ADESIVADA, DE *2,4 X 1,2* M | E54: M2 | F54: 1,0000000 | G54: 250,00 | H54: 250
B55: INSUMO | C55: 4115 | D55: MADEIRA ROLICA TRATADA, D = 12 A 15 CM, EM EUCALIPTO OU EQUIVALENTE DA REGIAO | E55: M | F55: 2 | G55: 21.37 | H55: 42.74
B56: INSUMO | C56: 5065 | D56: PREGO DE ACO POLIDO COM CABECA 10 X 10 (7/8 X 17) | E56: KG | F56: 0,0113000 | G56: 36,57 | H56: 0.41
B57: INSUMO | C57: 5069 | D57: PREGO DE ACO POLIDO COM CABECA 17 X 27 (2 1/2 X 11) | E57: KG | F57: 0,0132000 | G57: 19.59 | H57: 0.25
B58: COMPOSICAO | C58: 88262 | D58: CARPINTEIRO DE FORMAS COM ENCARGOS COMPLEMENTARES | E58: H | F58: 0,3729000 | G58: 27,05 | H58: 10.08
B59: COMPOSICAO | C59: 88316 | D59: SERVENTE COM ENCARGOS COMPLEMENTARES | E59: H | F59: 1,1186000 | G59: 19,76 | H59: 22.1
H60: 0
B61: PRODUÇÃO DA EQUIPE | E61: 1 | F61: CUSTO | H61: =SUM(H53:H60) -> 339.72
B62: TOTAL | H62: =H61/E61 -> 339.72 | I62: OK
B63: BDI % | H63: =1+$M$1 -> 1.2222
B64: TOTAL DO SERVIÇO - R$ | H64: =ROUND(H62*H63,2) -> 415.21
A66: =A48+1 -> 5 | B66: CODEVASF | E66: COMPOSIÇÃO DE PREÇO UNITÁRIO | I66: =H78 -> 0.33 | J66: =H80 -> 0.4
B67: OBRA: | C67: =$C$2 -> PAVIMENTAÇÃO ASFÁLTICA EM CBUQ – SAÍDA PARA COMUNIDADE DE SUCURIU DE BAIXO - ITEM 03 - (MORADA NOVA DE MINAS / MG) | G67: DATA: | H67: =$H$2 -> AGOSTO / 2023
B68: SERVIÇO: | C68: =VLOOKUP(A66,ORÇAMENTO!$A$10:$I$33,3) -> SERVIÇOS TOPOGRÁFICOS PARA PAVIMENTAÇÃO, INCLUSIVE NOTA DE SERVIÇO, ACOMPANHAMENTO E GREIDE | E68: SINAPI | F68: =VLOOKUP(A66,ORÇAMENTO!$A$10:$I$33,4) -> 78472 | G68: UNIDADE: | H68: =VLOOKUP(A66,ORÇAMENTO!$A$10:$I$33,5) -> M2
B70: TIPO ITEM | C70: CODIGO ITEM | D70: DESCRIÇÃO ITEM | E70: UNIDADE ITEM | F70: COEFICIENTE | G70: PRECO UNITARIO | H70: CUSTO TOTAL
B71: COMPOSICAO | C71: 88253 | D71: AUXILIAR DE TOPÓGRAFO COM ENCARGOS COMPLEMENTARES | E71: H | F71: 0.0025 | G71: 21.57 | H71: =ROUNDDOWN(F71*G71,2) -> 0.05
B72: COMPOSICAO | C72: 88288 | D72: NIVELADOR COM ENCARGOS COMPLEMENTARES | E72: H | F72: 0.0025 | G72: 26.99 | H72: 0.06
B73: COMPOSICAO | C73: 88316 | D73: SERVENTE COM ENCARGOS COMPLEMENTARES | E73: H | F73: 0.0075 | G73: 19.76 | H73: 0.14
B74: COMPOSICAO | C74: 88597 | D74: DESENHISTA DETALHISTA COM ENCARGOS COMPLEMENTARES | E74: H | F74: 0.002 | G74: 29.72 | H74: 0.05
B75: COMPOSICAO | C75: 92145 | D75: CAMINHONETE CABINE SIMPLES COM MOTOR 1.6 FLEX, CÂMBIO MANUAL, POTÊNCIA 101/104 CV, 2 PORTAS | E75: CHP | F75: 0.0005 | G75: 72.79 | H75: 0.03
H76: 0
B77: PRODUÇÃO DA EQUIPE | E77: 1 | F77: CUSTO | H77: =SUM(H71:H76) -> 0.33
B78: TOTAL | H78: =H77/E77 -> 0.33 | I78: OK
B79: BDI % | H79: =1+$M$1 -> 1.2222
B80: TOTAL DO SERVIÇO - R$ | H80: =ROUND(H78*H79,2) -> 0.4
A82: 5.1 | B82: CODEVASF | E82: COMPOSIÇÃO DE PREÇO UNITÁRIO | I82: =H92 -> 0.1770097396 | J82: =H94 -> 0.2163413038
B83: OBRA: | C83: =$C$2 -> PAVIMENTAÇÃO ASFÁLTICA EM CBUQ – SAÍDA PARA COMUNIDADE DE SUCURIU DE BAIXO - ITEM 03 - (MORADA NOVA DE MINAS / MG) | G83: DATA: | H83: =$H$2 -> AGOSTO / 2023
B84: SERVIÇO: | C84: =VLOOKUP(A82,ORÇAMENTO!$A$10:$I$33,3) -> DESMATAMENTO, DESTOCAMENTO, LIMPEZA DE ÁREA E ESTOCAGEM DO MATERIAL DE LIMPEZA COM ARVORES DE DIÂMETRO ATÉ 0,15M | E84: SICRO | F84: =VLOOKUP(A82,ORÇAMENTO!$A$10:$I$33,4) -> 5501700 | G84: UNIDADE: | H84: =VLOOKUP(A82,ORÇAMENTO!$A$10:$I$33,5) -> M2
B86: TIPO ITEM | C86: CODIGO ITEM | D86: DESCRIÇÃO ITEM | E86: UNIDADE ITEM | F86: COEFICIENTE | G86: PRECO UNITARIO | H86: CUSTO TOTAL
B87: COMPOSICAO | C87: 5847 | D87: TRATOR DE ESTEIRAS, POTÊNCIA 170 HP, PESO OPERACIONAL 19 T, CAÇAMBA 5,2 M3 | E87: CHP | F87: 1 | G87: 231.82 | H87: =ROUNDDOWN(F87*G87,2) -> 231.82
B88: COMPOSICAO | C88: 5849 | D88: TRATOR DE ESTEIRAS, POTÊNCIA 170 HP, PESO OPERACIONAL 19 T, CAÇAMBA 5,2 M3 | E88: CHI | F88: 0 | G88: 82.14 | H88: 0
B89: COMPOSICAO | C89: 88316 | D89: SERVENTE COM ENCARGOS COMPLEMENTARES | E89: H | F89: 2 | G89: 19,76 | H89: 39.52
H90: 0
B91: PRODUÇÃO DA EQUIPE | E91: 1532.91 | F91: CUSTO | H91: =SUM(H87:H90) -> 271.34
B92: TOTAL | H92: =H91/E91 -> 0.1770097396
B93: BDI % | H93: =1+$M$1 -> 1.2222
B94: TOTAL DO SERVIÇO - R$ | H94: =H92*H93 -> 0.2163413038
A96: 5.2 | B96: CODEVASF | E96: COMPOSIÇÃO DE PREÇO UNITÁRIO | I96: =H106 -> 13.07662651 | J96: =H108 -> 15.98225292
B97: OBRA: | C97: =$C$2 -> PAVIMENTAÇÃO ASFÁLTICA EM CBUQ – SAÍDA PARA COMUNIDADE DE SUCURIU DE BAIXO - ITEM 03 - (MORADA NOVA DE MINAS / MG) | G97: DATA: | H97: =$H$2 -> AGOSTO / 2023
B98: SERVIÇO: | C98: =VLOOKUP(A96,ORÇAMENTO!$A$10:$I$33,3) -> DESTOCAMENTO DE ÁRVORES COM DIAMETRO DE 0,15M a 0,30M | E98: SICRO | F98: =VLOOKUP(A96,ORÇAMENTO!$A$10:$I$33,4) -> 5501701 | G98: UNIDADE: | H98: =VLOOKUP(A96,ORÇAMENTO!$A$10:$I$33,5) -> UNID
B100: TIPO ITEM | C100: CODIGO ITEM | D100: DESCRIÇÃO ITEM | E100: UNIDADE ITEM | F100: COEFICIENTE | G100: PRECO UNITARIO | H100: CUSTO TOTAL
B101: COMPOSICAO | C101: 5847 | D101: TRATOR DE ESTEIRAS, POTÊNCIA 170 HP, PESO OPERACIONAL 19 T, CAÇAMBA 5,2 M3 | E101: CHP | F101: 1 | G101: 231.82 | H101: =ROUNDDOWN(F101*G101,2) -> 231.82
B102: COMPOSICAO | C102: 5849 | D102: TRATOR DE ESTEIRAS, POTÊNCIA 170 HP, PESO OPERACIONAL 19 T, CAÇAMBA 5,2 M3 | E102: CHI | F102: 0 | G102: 82.14 | H102: 0
B103: COMPOSICAO | C103: 88316 | D103: SERVENTE COM ENCARGOS COMPLEMENTARES | E103: H | F103: 2 | G103: 19,76 | H103: 39.52
H104: 0
B105: PRODUÇÃO DA EQUIPE | E105: 20.75 | F105: CUSTO | H105: =SUM(H101:H104) -> 271.34
B106: TOTAL | H106: =H105/E105 -> 13.07662651
B107: BDI % | H107: =1+$M$1 -> 1.2222
B108: TOTAL DO SERVIÇO - R$ | H108: =H106*H107 -> 15.98225292
A110: =A66+1 -> 6 | B110: CODEVASF | E110: COMPOSIÇÃO DE PREÇO UNITÁRIO | I110: =H119 -> 2.03 | J110: =H121 -> 2.48
B111: OBRA: | C111: =$C$2 -> PAVIMENTAÇÃO ASFÁLTICA EM CBUQ – SAÍDA PARA COMUNIDADE DE SUCURIU DE BAIXO - ITEM 03 - (MORADA NOVA DE MINAS / MG) | G111: DATA: | H111: =$H$2 -> AGOSTO / 2023
B112: SERVIÇO: | C112: =VLOOKUP(A110,ORÇAMENTO!$A$10:$I$33,3) -> ESCAVAÇÃO HORIZONTAL EM SOLO DE 1A CATEGORIA | E112: SINAPI | F112: =VLOOKUP(A110,ORÇAMENTO!$A$10:$I$33,4) -> 101116 | G112: UNIDADE: | H112: =VLOOKUP(A110,ORÇAMENTO!$A$10:$I$33,5) -> M3
B114: TIPO ITEM | C114: CODIGO ITEM | D114: DESCRIÇÃO ITEM | E114: UNIDADE ITEM | F114: COEFICIENTE | G114: PRECO UNITARIO | H114: CUSTO TOTAL
B115: COMPOSICAO | C115: 5847 | D115: TRATOR DE ESTEIRAS, POTÊNCIA 170 HP, PESO OPERACIONAL 19 T, CAÇAMBA 5,2 M3 | E115: CHP | F115: 0,0048000 | G115: 231.82 | H115: =ROUNDDOWN(F115*G115,2) -> 1.11
B116: COMPOSICAO | C116: 5849 | D116: TRATOR DE ESTEIRAS, POTÊNCIA 170 HP, PESO OPERACIONAL 19 T, CAÇAMBA 5,2 M3 | E116: CHI | F116: 0,0082000 | G116: 82.14 | H116: =ROUNDDOWN(F116*G116,2) -> 0.67
B117: COMPOSICAO | C117: 88316 | D117: SERVENTE COM ENCARGOS COMPLEMENTARES | E117: H | F117: 0,0131000 | G117: 19,76 | H117: =ROUNDDOWN(F117*G117,2) -> 0.25
B118: PRODUÇÃO DA EQUIPE | E118: 1 | F118: CUSTO | H118: =SUM(H115:H117) -> 2.03
B119: TOTAL | H119: =H118/E118 -> 2.03 | I119: OK
B120: BDI % | H120: =1+$M$1 -> 1.2222
B121: TOTAL DO SERVIÇO - R$ | H121: =ROUND(H119*H120,2) -> 2.48
A123: 7 | B123: CODEVASF | E123: COMPOSIÇÃO DE PREÇO UNITÁRIO | I123: =H133 -> 7.99 | J123: =H135 -> 9.77
B124: OBRA: | C124: =$C$2 -> PAVIMENTAÇÃO ASFÁLTICA EM CBUQ – SAÍDA PARA COMUNIDADE DE SUCURIU DE BAIXO - ITEM 03 - (MORADA NOVA DE MINAS / MG) | G124: DATA: | H124: =$H$2 -> AGOSTO / 2023
B125: SERVIÇO: | C125: =VLOOKUP(A123,ORÇAMENTO!$A$10:$I$33,3) -> CARGA, MANOBRA E DESCARGA DE SOLOS E MATERIAIS GRANULARES EM CAMINHÃO BASCULANTE | E125: SINAPI | F125: =VLOOKUP(A123,ORÇAMENTO!$A$10:$I$33,4) -> 100976 | G125: UNIDADE: | H125: =VLOOKUP(A123,ORÇAMENTO!$A$10:$I$33,5) -> M3
B127: TIPO ITEM | C127: CODIGO ITEM | D127: DESCRIÇÃO ITEM | E127: UNIDADE ITEM | F127: COEFICIENTE | G127: PRECO UNITARIO | H127: CUSTO TOTAL
B128: COMPOSICAO | C128: 5940 | D128: PÁ CARREGADEIRA SOBRE RODAS, POTÊNCIA LÍQUIDA 128 HP, CAPACIDADE DA CAÇAMBA 1,7 A 2,8 M3, PESO OPERACIONAL 11632 KG | E128: CHP | F128: 0,0083000 | G128: 205,93 | H128: =ROUNDDOWN(F128*G128,2) -> 1.7
B129: COMPOSICAO | C129: 5942 | D129: PÁ CARREGADEIRA SOBRE RODAS, POTÊNCIA LÍQUIDA 128 HP, CAPACIDADE DA CAÇAMBA 1,7 A 2,8 M3, PESO OPERACIONAL 11632 KG | E129: CHI | F129: 0,0074000 | G129: 90,02 | H129: =ROUNDDOWN(F129*G129,2) -> 0.66
B130: COMPOSICAO | C130: 89883 | D130: CAMINHÃO BASCULANTE 18 M3, COM CAVALO MECÂNICO DE CAPACIDADE MÁXIMA DE TRAÇÃO COMBINADO DE 45000 KG, POTÊNCIA 330 CV, INCLUSIVE SEMIREBOQUE COM CAÇAMBA METÁLICA | E130: CHP | F130: 0,0153000 | G130: 314,64 | H130: =ROUNDDOWN(F130*G130,2) -> 4.81
B131: COMPOSICAO | C131: 89884 | D131: CAMINHÃO BASCULANTE 18 M3, COM CAVALO MECÂNICO DE CAPACIDADE MÁXIMA DE TRAÇÃO COMBINADO DE 45000 KG, POTÊNCIA 330 CV, INCLUSIVE SEMIREBOQUE COM CAÇAMBA METÁLICA | E131: CHI | F131: 0,0095000 | G131: 86,36 | H131: =ROUNDDOWN(F131*G131,2) -> 0.82
B132: PRODUÇÃO DA EQUIPE | E132: 1 | F132: CUSTO | H132: =SUM(H128:H131) -> 7.99
B133: TOTAL | H133: =H132/E132 -> 7.99 | I133: OK
B134: BDI % | H134: =1+$M$1 -> 1.2222
B135: TOTAL DO SERVIÇO - R$ | H135: =ROUND(H133*H134,2) -> 9.77
A137: 8 | B137: CODEVASF | E137: COMPOSIÇÃO DE PREÇO UNITÁRIO | I137: =H151 -> 1.13 | J137: =H153 -> 1.38
B138: OBRA: | C138: =$C$2 -> PAVIMENTAÇÃO ASFÁLTICA EM CBUQ – SAÍDA PARA COMUNIDADE DE SUCURIU DE BAIXO - ITEM 03 - (MORADA NOVA DE MINAS / MG) | G138: DATA: | H138: =$H$2 -> AGOSTO / 2023
B139: SERVIÇO: | C139: =VLOOKUP(A137,ORÇAMENTO!$A$10:$I$33,3) -> REGULARIZAÇÃO E COMPACTAÇÃO DO SUBLEITO | E139: SICRO | F139: =VLOOKUP(A137,ORÇAMENTO!$A$10:$I$33,4) -> 100577 | G139: UNIDADE: | H139: M2
B141: TIPO ITEM | C141: CODIGO ITEM | D141: DESCRIÇÃO ITEM | E141: UNIDADE ITEM | F141: COEFICIENTE | G141: PRECO UNITARIO | H141: CUSTO TOTAL
B142: COMPOSICAO | C142: 5901 | D142: CAMINHÃO PIPA 10.000 L TRUCADO, PESO BRUTO TOTAL 23.000 KG, CARGA ÚTIL MÁXIMA 15.935 KG, DISTÂNCIA ENTRE EIXOS 4,8 M, POTÊNCIA 230 CV, INCLUSIVE TANQUE DE AÇO PARA TRANSPORTE DE ÁGUA | E142: CHP | F142: 0,0010000 | G142: 264,71 | H142: =ROUNDDOWN(F142*G142,2) -> 0.26
B143: COMPOSICAO | C143: 5903 | D143: CAMINHÃO PIPA 10.000 L TRUCADO, PESO BRUTO TOTAL 23.000 KG, CARGA ÚTIL MÁXIMA 15.935 KG, DISTÂNCIA ENTRE EIXOS 4,8 M, POTÊNCIA 230 CV, INCLUSIVE TANQUE DE AÇO PARA TRANSPORTE DE ÁGUA | E143: CHI | F143: 0,0020000 | G143: 67,26 | H143: 0.13
B144: COMPOSICAO | C144: 5932 | D144: MOTONIVELADORA POTÊNCIA BÁSICA LÍQUIDA (PRIMEIRA MARCHA) 125 HP, PESO BRUTO 13032 KG, LARGURA DA LÂMINA DE 3,7 M | E144: CHP | F144: 0,0001000 | G144: 244,89 | H144: 0.02
B145: COMPOSICAO | C145: 5934 | D145: MOTONIVELADORA POTÊNCIA BÁSICA LÍQUIDA (PRIMEIRA MARCHA) 125 HP, PESO BRUTO 13032 KG, LARGURA DA LÂMINA DE 3,7 M | E145: CHI | F145: 0,0030000 | G145: 101,62 | H145: 0.3
B146: COMPOSICAO | C146: 88316 | D146: SERVENTE COM ENCARGOS COMPLEMENTARES | E146: H | F146: 0,0030000 | G146: 19,76 | H146: 0.05
B147: COMPOSICAO | C147: 96463 | D147: ROLO COMPACTADOR DE PNEUS, ESTATICO, PRESSAO VARIAVEL, POTENCIA 110 HP, PESO SEM/COM LASTRO 10,8/27 T, LARGURA DE ROLAGEM 2,30 M | E147: CHP | F147: 0,0010000 | G147: 203,13 | H147: 0.2
B148: COMPOSICAO | C148: 96464 | D148: ROLO COMPACTADOR DE PNEUS, ESTATICO, PRESSAO VARIAVEL, POTENCIA 110 HP, PESO SEM/COM LASTRO 10,8/27 T, LARGURA DE ROLAGEM 2,30 M | E148: CHI | F148: 0,0020000 | G148: 89,07 | H148: 0.17
B150: PRODUÇÃO DA EQUIPE | E150: 1 | F150: CUSTO | H150: =SUM(H142:H149) -> 1.13
B151: TOTAL | H151: =H150/E150 -> 1.13 | I151: OK
B152: BDI % | H152: =1+$M$1 -> 1.2222
B153: TOTAL DO SERVIÇO - R$ | H153: =ROUND(H151*H152,2) -> 1.38
A155: 9 | B155: CODEVASF | E155: COMPOSIÇÃO DE PREÇO UNITÁRIO | I155: =H170 -> 12.99 | J155: =H172 -> 15.88
B156: OBRA: | C156: =$C$2 -> PAVIMENTAÇÃO ASFÁLTICA EM CBUQ – SAÍDA PARA COMUNIDADE DE SUCURIU DE BAIXO - ITEM 03 - (MORADA NOVA DE MINAS / MG) | G156: DATA: | H156: =$H$2 -> AGOSTO / 2023
B157: SERVIÇO: | C157: =VLOOKUP(A155,ORÇAMENTO!$A$10:$I$33,3) -> EXECUÇÃO E COMPACTAÇÃO DE BASE E OU SUB BASE PARA PAVIMENTAÇÃO EM CASCALHO - EXCLUSIVE SOLO, ESCAVAÇÃO, CARGA E TRANSPORTE. | E157: SINAPI | F157: =VLOOKUP(A155,ORÇAMENTO!$A$10:$I$33,4) -> 96388 | G157: UNIDADE: | H157: =VLOOKUP(A155,ORÇAMENTO!$A$10:$I$33,5) -> M3
B159: TIPO ITEM | C159: CODIGO ITEM | D159: DESCRIÇÃO ITEM | E159: UNIDADE ITEM | F159: COEFICIENTE | G159: PRECO UNITARIO | H159: CUSTO TOTAL
B160: COMPOSICAO | C160: 5684 | D160: ROLO COMPACTADOR VIBRATÓRIO DE UM CILINDRO AÇO LISO, POTÊNCIA 80 HP, PESO OPERACIONAL MÁXIMO 8,1 T, IMPACTO DINÂMICO 16,15 / 9,5 T, LARGURA DE TRABALHO 1,68 M | E160: CHP | F160: 0,0090000 | G160: 148,46 | H160: =ROUNDDOWN(F160*G160,2) -> 1.33
B161: COMPOSICAO | C161: 5685 | D161: ROLO COMPACTADOR VIBRATÓRIO DE UM CILINDRO AÇO LISO, POTÊNCIA 80 HP, PESO OPERACIONAL MÁXIMO 8,1 T, IMPACTO DINÂMICO 16,15 / 9,5 T, LARGURA DE TRABALHO 1,68 M | E161: CHI | F161: 0,0210000 | G161: 65,46 | H161: 1.37
B162: COMPOSICAO | C162: 5901 | D162: CAMINHÃO PIPA 10.000 L TRUCADO, PESO BRUTO TOTAL 23.000 KG, CARGA ÚTIL MÁXIMA 15.935 KG, DISTÂNCIA ENTRE EIXOS 4,8 M, POTÊNCIA 230 CV, INCLUSIVE TANQUE DE AÇO PARA TRANSPORTE DE ÁGUA | E162: CHP | F162: 0,0020000 | G162: 264,71 | H162: =ROUNDDOWN(F162*G162,2) -> 0.52
B163: COMPOSICAO | C163: 5903 | D163: CAMINHÃO PIPA 10.000 L TRUCADO, PESO BRUTO TOTAL 23.000 KG, CARGA ÚTIL MÁXIMA 15.935 KG, DISTÂNCIA ENTRE EIXOS 4,8 M, POTÊNCIA 230 CV, INCLUSIVE TANQUE DE AÇO PARA TRANSPORTE DE ÁGUA | E163: CHI | F163: 0,0280000 | G163: 67,26 | H163: 1.88
B164: COMPOSICAO | C164: 5932 | D164: MOTONIVELADORA POTÊNCIA BÁSICA LÍQUIDA (PRIMEIRA MARCHA) 125 HP, PESO BRUTO 13032 KG, LARGURA DA LÂMINA DE 3,7 M | E164: CHP | F164: 0,0080000 | G164: 244,89 | H164: 1.95
B165: COMPOSICAO | C165: 5934 | D165: MOTONIVELADORA POTÊNCIA BÁSICA LÍQUIDA (PRIMEIRA MARCHA) 125 HP, PESO BRUTO 13032 KG, LARGURA DA LÂMINA DE 3,7 M | E165: CHI | F165: 0,0220000 | G165: 101,62 | H165: 2.23
B166: COMPOSICAO | C166: 88316 | D166: SERVENTE COM ENCARGOS COMPLEMENTARES | E166: H | F166: 0,0300000 | G166: 19,76 | H166: 0.59
B167: COMPOSICAO | C167: 96463 | D167: ROLO COMPACTADOR DE PNEUS, ESTATICO, PRESSAO VARIAVEL, POTENCIA 110 HP, PESO SEM/COM LASTRO 10,8/27 T, LARGURA DE ROLAGEM 2,30 M | E167: CHP | F167: 0,0040000 | G167: 203,13 | H167: 0.81
B168: COMPOSICAO | C168: 96464 | D168: ROLO COMPACTADOR DE PNEUS, ESTATICO, PRESSAO VARIAVEL, POTENCIA 110 HP, PESO SEM/COM LASTRO 10,8/27 T, LARGURA DE ROLAGEM 2,30 M | E168: CHI | F168: 0,0260000 | G168: 89,07 | H168: 2.31
B169: PRODUÇÃO DA EQUIPE | E169: 1 | F169: CUSTO | H169: =SUM(H160:H168) -> 12.99
B170: TOTAL | H170: =H169/E169 -> 12.99 | I170: OK
B171: BDI % | H171: =1+$M$1 -> 1.2222
B172: TOTAL DO SERVIÇO - R$ | H172: =ROUND(H170*H171,2) -> 15.88
A174: 10 | B174: CODEVASF | E174: COMPOSIÇÃO DE PREÇO UNITÁRIO | I174: =H189 -> 1.12 | J174: =H191 -> 1.37
B175: OBRA: | C175: =$C$2 -> PAVIMENTAÇÃO ASFÁLTICA EM CBUQ – SAÍDA PARA COMUNIDADE DE SUCURIU DE BAIXO - ITEM 03 - (MORADA NOVA DE MINAS / MG) | G175: DATA: | H175: =$H$2 -> AGOSTO / 2023
B176: SERVIÇO: | C176: =VLOOKUP(A174,ORÇAMENTO!$A$10:$I$33,3) -> IMPRIMAÇÃO COM EMULSÃO ASFÁLTICA (EAI) | E176: SINAPI | F176: =VLOOKUP(A174,ORÇAMENTO!$A$10:$I$33,4) -> 96401 | G176: UNIDADE: | H176: =VLOOKUP(A174,ORÇAMENTO!$A$10:$I$33,5) -> M2
B178: TIPO ITEM | C178: CODIGO ITEM | D178: DESCRIÇÃO ITEM | E178: UNIDADE ITEM | F178: COEFICIENTE | G178: PRECO UNITARIO | H178: CUSTO TOTAL
B179: COMPOSICAO | C179: 5839 | D179: VASSOURA MECÂNICA REBOCÁVEL COM ESCOVA CILÍNDRICA, LARGURA ÚTIL DE VARRIMENTO DE 2,44 M | E179: CHP | F179: 0,0020000 | G179: 9.77 | H179: =ROUNDDOWN(F179*G179,2) -> 0.01
B180: COMPOSICAO | C180: 5841 | D180: VASSOURA MECÂNICA REBOCÁVEL COM ESCOVA CILÍNDRICA, LARGURA ÚTIL DE VARRIMENTO DE 2,44 M | E180: CHI | F180: 0,0040000 | G180: 4.65 | H180: 0.01
B181: INSUMO | C181: ANP | D181: EMULSÃO ASFÁLTICA PARA IMPRIMAÇÃO - EAI (FORNECIMENTO COM BDI DIFERENCIADO) | E181: T | F181: =1.3/1000 -> 0.0013 | H181: 0
B182: COMPOSICAO | C182: 83362 | D182: ESPARGIDOR DE ASFALTO PRESSURIZADO, TANQUE 6 M3 COM ISOLAÇÃO TÉRMICA, AQUECIDO COM 2 MAÇARICOS, COM BARRA ESPARGIDORA 3,60 M, MONTADO SOBRE CAMINHÃO TOCO, PBT 14.300 KG, POTÊNCIA 185 CV | E182: CHP | F182: 0,0010000 | G182: 232.92 | H182: 0.23
B183: COMPOSICAO | C183: 88316 | D183: SERVENTE COM ENCARGOS COMPLEMENTARES | E183: H | F183: 0,0060000 | G183: 19.76 | H183: 0.11
B184: COMPOSICAO | C184: 89035 | D184: TRATOR DE PNEUS, POTÊNCIA 85 CV, TRAÇÃO 4X4, PESO COM LASTRO DE 4.675 KG | E184: CHP | F184: 0,0020000 | G184: 119.96 | H184: 0.23
B185: COMPOSICAO | C185: 89036 | D185: TRATOR DE PNEUS, POTÊNCIA 85 CV, TRAÇÃO 4X4, PESO COM LASTRO DE 4.675 KG | E185: CHI | F185: 0,0040000 | G185: 52.19 | H185: 0.2
B186: COMPOSICAO | C186: 91486 | D186: ESPARGIDOR DE ASFALTO PRESSURIZADO, TANQUE 6 M3 COM ISOLAÇÃO TÉRMICA, AQUECIDO COM 2 MAÇARICOS, COM BARRA ESPARGIDORA 3,60 M, MONTADO SOBRE CAMINHÃO TOCO, PBT 14.300 KG, POTÊNCIA 185 CV | E186: CHI | F186: 0,0050000 | G186: 66.18 | H186: 0.33
H187: 0
B188: PRODUÇÃO DA EQUIPE | E188: 1 | F188: CUSTO | H188: =SUM(H179:H187) -> 1.12
B189: TOTAL | H189: =H188/E188 -> 1.12 | I189: OK
B190: BDI % | H190: =1+$M$1 -> 1.2222
B191: TOTAL DO SERVIÇO - R$ | H191: =ROUND(H189*H190,2) -> 1.37
A193: 11 | B193: CODEVASF | E193: COMPOSIÇÃO DE PREÇO UNITÁRIO | I193: =H208 -> 0.93 | J193: =H210 -> 1.14
B194: OBRA: | C194: =$C$2 -> PAVIMENTAÇÃO ASFÁLTICA EM CBUQ – SAÍDA PARA COMUNIDADE DE SUCURIU DE BAIXO - ITEM 03 - (MORADA NOVA DE MINAS / MG) | G194: DATA: | H194: =$H$2 -> AGOSTO / 2023
B195: SERVIÇO: | C195: =VLOOKUP(A193,ORÇAMENTO!$A$10:$I$33,3) -> PINTURA DE LIGAÇÃO COM EMULSÃO ASFÁLTICA RR-1C | E195: SINAPI | F195: =VLOOKUP(A193,ORÇAMENTO!$A$10:$I$33,4) -> 96402 | G195: UNIDADE: | H195: M2
B197: TIPO ITEM | C197: CODIGO ITEM | D197: DESCRIÇÃO ITEM | E197: UNIDADE ITEM | F197: COEFICIENTE | G197: PRECO UNITARIO | H197: CUSTO TOTAL
B198: COMPOSICAO | C198: 5839 | D198: VASSOURA MECÂNICA REBOCÁVEL COM ESCOVA CILÍNDRICA, LARGURA ÚTIL DE VARRIMENTO DE 2,44 M | E198: CHP | F198: 0,0020000 | G198: 9.77 | H198: =ROUNDDOWN(F198*G198,2) -> 0.01
B199: COMPOSICAO | C199: 5841 | D199: VASSOURA MECÂNICA REBOCÁVEL COM ESCOVA CILÍNDRICA, LARGURA ÚTIL DE VARRIMENTO DE 2,44 M | E199: CHI | F199: 0,0040000 | G199: 4.65 | H199: 0.01
B200: INSUMO | C200: 41903 | D200: EMULSAO ASFALTICA CATIONICA RR-1C PARA USO EM PAVIMENTACAO ASFALTICA (FORNECIMENTO COM BDI DIFERENCIADO) | E200: KG | F200: 0,4500000 | H200: 0
B201: COMPOSICAO | C201: 83362 | D201: ESPARGIDOR DE ASFALTO PRESSURIZADO, TANQUE 6 M3 COM ISOLAÇÃO TÉRMICA, AQUECIDO COM 2 MAÇARICOS, COM BARRA ESPARGIDORA 3,60 M, MONTADO SOBRE CAMINHÃO TOCO, PBT 14.300 KG, POTÊNCIA 185 CV | E201: CHP | F201: 0,0004000 | G201: 232.92 | H201: 0.09
B202: COMPOSICAO | C202: 88316 | D202: SERVENTE COM ENCARGOS COMPLEMENTARES | E202: H | F202: 0,0055000 | G202: 19.76 | H202: 0.1
B203: COMPOSICAO | C203: 89035 | D203: TRATOR DE PNEUS, POTÊNCIA 85 CV, TRAÇÃO 4X4, PESO COM LASTRO DE 4.675 KG | E203: CHP | F203: 0,0017000 | G203: 119.96 | H203: 0.2
B204: COMPOSICAO | C204: 89036 | D204: TRATOR DE PNEUS, POTÊNCIA 85 CV, TRAÇÃO 4X4, PESO COM LASTRO DE 4.675 KG | E204: CHI | F204: 0,0038000 | G204: 52.19 | H204: 0.19
B205: COMPOSICAO | C205: 91486 | D205: ESPARGIDOR DE ASFALTO PRESSURIZADO, TANQUE 6 M3 COM ISOLAÇÃO TÉRMICA, AQUECIDO COM 2 MAÇARICOS, COM BARRA ESPARGIDORA 3,60 M, MONTADO SOBRE CAMINHÃO TOCO, PBT 14.300 KG, POTÊNCIA 185 CV | E205: CHI | F205: 0,0051000 | G205: 66.18 | H205: 0.33
H206: 0
B207: PRODUÇÃO DA EQUIPE | E207: 1 | F207: CUSTO | H207: =SUM(H198:H206) -> 0.93
B208: TOTAL | H208: =H207/E207 -> 0.93 | I208: OK
B209: BDI % | H209: =1+$M$1 -> 1.2222
B210: TOTAL DO SERVIÇO - R$ | H210: =ROUND(H208*H209,2) -> 1.14
A212: 12 | B212: CODEVASF | E212: COMPOSIÇÃO DE PREÇO UNITÁRIO | I212: =H230 -> 121.32 | J212: =H232 -> 148.28
B213: OBRA: | C213: =$C$2 -> PAVIMENTAÇÃO ASFÁLTICA EM CBUQ – SAÍDA PARA COMUNIDADE DE SUCURIU DE BAIXO - ITEM 03 - (MORADA NOVA DE MINAS / MG) | G213: DATA: | H213: =$H$2 -> AGOSTO / 2023
B214: SERVIÇO: | C214: =VLOOKUP(A212,ORÇAMENTO!$A$10:$I$33,3) -> EXECUÇÃO DE PAVIMENTO COM APLICAÇÃO DE CONCRETO ASFÁLTICO USINADO A QUENTE (CBUQ), CAMADA DE ROLAMENTO - EXCLUSIVE TRANSPORTE | E214: SINAPI | F214: =VLOOKUP(A212,ORÇAMENTO!$A$10:$I$33,4) -> 95995 | G214: UNIDADE: | H214: =VLOOKUP(A212,ORÇAMENTO!$A$10:$I$33,5) -> M3
B216: TIPO ITEM | C216: CODIGO ITEM | D216: DESCRIÇÃO ITEM | E216: UNIDADE ITEM | F216: COEFICIENTE | G216: PRECO UNITARIO | H216: CUSTO TOTAL
B217: INSUMO | C217: 1518 | D217: CONCRETO BETUMINOSO USINADO A QUENTE (CBUQ) PARA PAVIMENTACAO ASFALTICA, PADRAO DNIT, FAIXA C, COM CAP 50/70 - AQUISICAO POSTO USINA | E217: T | F217: 2,5548000 | H217: =ROUNDDOWN(F217*G217,2) -> 0
B218: COMPOSICAO | C218: 5835 | D218: VIBROACABADORA DE ASFALTO SOBRE ESTEIRAS, LARGURA DE PAVIMENTAÇÃO 1,90 M A 5,30 M, POTÊNCIA 105 HP CAPACIDADE 450 T/H | E218: CHP | F218: 0,0464000 | G218: 366,49 | H218: 17
B219: COMPOSICAO | C219: 5837 | D219: VIBROACABADORA DE ASFALTO SOBRE ESTEIRAS, LARGURA DE PAVIMENTAÇÃO 1,90 M A 5,30 M, POTÊNCIA 105 HP CAPACIDADE 450 T/H | E219: CHI | F219: 0,0949000 | G219: 147,82 | H219: 14.02
B220: COMPOSICAO | C220: 88314 | D220: RASTELEIRO COM ENCARGOS COMPLEMENTARES | E220: H | F220: 1,1301000 | G220: 26,52 | H220: 29.97
B221: COMPOSICAO | C221: 91386 | D221: CAMINHÃO BASCULANTE 10 M3, TRUCADO CABINE SIMPLES, PESO BRUTO TOTAL 23.000 KG, CARGA ÚTIL MÁXIMA 15.935 KG, DISTÂNCIA ENTRE EIXOS 4,80 M, POTÊNCIA 230 CV INCLUSIVE CAÇAMBA METÁLICA | E221: CHP | F221: 0,0464000 | G221: 228,50 | H221: 10.6
B222: COMPOSICAO | C222: 95631 | D222: ROLO COMPACTADOR VIBRATORIO TANDEM, ACO LISO, POTENCIA 125 HP, PESO SEM/COM LASTRO 10,20/11,65 T, LARGURA DE TRABALHO 1,73 M | E222: CHP | F222: 0,0805000 | G222: 210,29 | H222: 16.92
B223: COMPOSICAO | C223: 95632 | D223: ROLO COMPACTADOR VIBRATORIO TANDEM, ACO LISO, POTENCIA 125 HP, PESO SEM/COM LASTRO 10,20/11,65 T, LARGURA DE TRABALHO 1,73 M | E223: CHI | F223: 0,0607000 | G223: 83,23 | H223: 5.05
B224: COMPOSICAO | C224: 96155 | D224: TRATOR DE PNEUS COM POTÊNCIA DE 85 CV, TRAÇÃO 4X4, COM VASSOURA MECÂNICA ACOPLADA | E224: CHI | F224: 0,1071000 | G224: 56,63 | H224: 6.06
B225: COMPOSICAO | C225: 96157 | D225: TRATOR DE PNEUS COM POTÊNCIA DE 85 CV, TRAÇÃO 4X4, COM VASSOURA MECÂNICA ACOPLADA | E225: CHP | F225: 0,0341000 | G225: 128,67 | H225: 4.38
B226: COMPOSICAO | C226: 96463 | D226: ROLO COMPACTADOR DE PNEUS, ESTATICO, PRESSAO VARIAVEL, POTENCIA 110 HP, PESO SEM/COM LASTRO 10,8/27 T, LARGURA DE ROLAGEM 2,30 M | E226: CHP | F226: 0,0419000 | G226: 203,13 | H226: 8.51
B227: COMPOSICAO | C227: 96464 | D227: ROLO COMPACTADOR DE PNEUS, ESTATICO, PRESSAO VARIAVEL, POTENCIA 110 HP, PESO SEM/COM LASTRO 10,8/27 T, LARGURA DE ROLAGEM 2,30 M | E227: CHI | F227: 0,0990000 | G227: 89,07 | H227: 8.81
H228: 0
... 107 more rows

Sheet BDI SERV
B1: DETALHAMENTO DO BDI - SERVIÇOS
B4: Item | C4: Descrição dos Serviços | D4: % | E4: %
D5: PV | E5: CD
B7: 1 | C7: ADMINISTRAÇÃO CENTRAL | E7: 4.01
B8: 1.1 | C8: ESCRITÓRIO CENTRAL
B9: 1.2 | C9: VIAGENS
B10: 1.3 | C10: OUTROS
B12: 2 | C12: IMPOSTOS E TAXAS | D12: =SUM(D13:D16) -> 6.65 | E12: =SUM(E13:E16) -> 8.31
B13: 2.1 | C13: ISS (*) | D13: 3 | E13: =ROUND(D13*1.2515,2) -> 3.75
B14: 2.2 | C14: PIS | D14: 0.65 | E14: =ROUND(D14*1.2515,2) -> 0.81
B15: 2.3 | C15: Cofins | D15: 3 | E15: =ROUND(D15*1.2515,2) -> 3.75
B16: 2.4 | C16: CONTRIBUIÇÃO PREVIDENCIÁRIA SOBRE A RENDA BRUTA | D16: 0 | E16: =ROUND(D16*1.2515,2) -> 0
B18: 3 | C18: TAXA DE RISCO | E18: =SUM(E19:E22) -> 0.96
B19: 3.1 | C19: SEGURO | E19: 0.2
B20: 3.2 | C20: RISCO | E20: 0.56
B21: 3.3 | C21: GARANTIA | E21: 0.2
B23: 4 | C23: DESPESAS FINANCEIRAS | E23: 1.11
B25: 5 | C25: LUCRO | E25: 7.5
C27: BDI - CALCULADO | E27: =ROUND((((1+(E7+E18)/100)*(1+E23/100)*(1+E25/100)/(1-D12/100)-1)*100),2) -> 22.22
A29: BDI = ((1+((AC+S+R+G)/100))x(1+DF/100)x(1+L/100)/(1-I/100)-1)*100
B31: BDI (CALCULADO): | D31: =ROUND((((1+((E7+E18)/100))*(1+E23/100)*(1+E25/100))/(1-D12/100)-1)*100,2) -> 22.22 | E31: %
A33: (*) ISS CONFORME LEI 2.226/2017 e LEI COMPLEMENTAR Nº 116/2003 - Considerando as deduções previstas no Art. 106 - § 5º (Alíquota sobre 50% do valor dos serviços)
A37: BDI EM CONFORMIDADE COM OS ACÓRDÃOS Nº 2369/2011 e ACÓRDÃO Nº 2.622/2013 - TCU - PLENÁRIO

Sheet BDI FORN
B1: DETALHAMENTO DO BDI - FORNECIMENTO (MATERIAL ASFÁLTICO)
B4: Item | C4: Descrição dos Serviços | D4: % | E4: %
D5: PV | E5: CD
B7: 1 | C7: ADMINISTRAÇÃO CENTRAL | E7: 3.72
B8: 1.1 | C8: ESCRITÓRIO CENTRAL
B9: 1.2 | C9: VIAGENS
B10: 1.3 | C10: OUTROS
B12: 2 | C12: IMPOSTOS E TAXAS | D12: =SUM(D13:D16) -> 3.65 | E12: =SUM(E13:E16) -> 4.56
B13: 2.1 | C13: ISS (*) | E13: =ROUND(D13*1.2515,2) -> 0
B14: 2.2 | C14: PIS | D14: 0.65 | E14: =ROUND(D14*1.2515,2) -> 0.81
B15: 2.3 | C15: Cofins | D15: 3 | E15: =ROUND(D15*1.2515,2) -> 3.75
B16: 2.4 | C16: CONTRIBUIÇÃO PREVIDENCIÁRIA SOBRE A RENDA BRUTA | D16: 0 | E16: =ROUND(D16*1.2515,2) -> 0
B18: 3 | C18: TAXA DE RISCO | E18: =SUM(E19:E22) -> 0.82
B19: 3.1 | C19: SEGURO | E19: 0.16
B20: 3.2 | C20: RISCO | E20: 0.5
B21: 3.3 | C21: GARANTIA | E21: 0.16
B23: 4 | C23: DESPESAS FINANCEIRAS | E23: 0.94
B25: 5 | C25: LUCRO | E25: 5
C27: BDI - CALCULADO | E27: =ROUND((((1+(E7+E18)/100)*(1+E23/100)*(1+E25/100)/(1-D12/100)-1)*100),2) -> 15
A29: BDI = ((1+((AC+S+R+G)/100))x(1+DF/100)x(1+L/100)/(1-I/100)-1)*100
B31: BDI (CALCULADO): | D31: =ROUND((((1+((E7+E18)/100))*(1+E23/100)*(1+E25/100))/(1-D12/100)-1)*100,2) -> 15 | E31: %
A37: BDI EM CONFORMIDADE COM OS ACÓRDÃOS Nº 2369/2011 e ACÓRDÃO Nº 2.622/2013 - TCU - PLENÁRIO

Sheet CRONOGRAMA
B1: CRONOGRAMA FÍSICO-FINANCEIRO
B2: OBRA: | C2: =ORÇAMENTO!C5 -> PAVIMENTAÇÃO ASFÁLTICA EM CBUQ – SAÍDA PARA COMUNIDADE DE SUCURIU DE BAIXO - ITEM 03 - (MORADA NOVA DE MINAS / MG) | F2: VALOR: | G2: =ORÇAMENTO!I39 -> 1123586.4
F3: PRAZO: | G3: 120 DIAS
B5: ITEM | C5: ETAPAS/DESCRIÇAO | D5: FISICO/ FINANCEIRO | E5: TOTAL ETAPAS | F5: MÊS 1 | G5: MÊS 2 | H5: MÊS 3 | I5: MÊS 4 | J5: TOTAL
A6: A | B6: =VLOOKUP(A6,ORÇAMENTO!$A$9:$I$39,2) -> 1.7 | C6: =VLOOKUP(A6,ORÇAMENTO!$A$9:$I$39,3) -> DESTOCAMENTO DE ÁRVORES COM DIAMETRO DE 0,15M a 0,30M | D6: FISICO | E6: =ROUND(E7/$G$2,4) -> 0.0811 | F6: 0.35 | G6: 0.2 | H6: 0.2 | I6: 0.25 | J6: =SUM(F6:I6) -> 1
D7: FINANCEIRO | E7: =ORÇAMENTO!I9 -> 91125.81 | F7: =ROUND($E$7*F6,2) -> 31894.03 | G7: 18225.16 | H7: 18225.16 | I7: 22781.45 | J7: =SUM(F7:I7) -> 91125.8
A8: B | B8: =VLOOKUP(A8,ORÇAMENTO!$A$9:$I$39,2) -> 2 | C8: =VLOOKUP(A8,ORÇAMENTO!$A$9:$I$39,3) -> PAVIMENTAÇÃO | D8: FISICO | E8: =ROUND(E9/$G$2,4) -> 0.1189 | F8: 0.3 | G8: 0.3 | H8: 0.25 | I8: 0.15 | J8: =SUM(F8:I8) -> 1
D9: FINANCEIRO | E9: =ORÇAMENTO!I17 -> 133600.8 | F9: =ROUND($E$9*F8,2) -> 40080.24 | G9: 40080.24 | H9: 33400.2 | I9: 20040.12 | J9: =SUM(F9:I9) -> 133600.8
A10: C | B10: =VLOOKUP(A10,ORÇAMENTO!$A$9:$I$39,2) -> 3 | C10: =VLOOKUP(A10,ORÇAMENTO!$A$9:$I$39,3) -> TRANSPORTE DE MATERIAIS | D10: FISICO | E10: =ROUND(E11/$G$2,4) -> 0.0775 | F10: 0.3 | G10: 0.25 | H10: 0.25 | I10: 0.2 | J10: =SUM(F10:I10) -> 1
D11: FINANCEIRO | E11: =ORÇAMENTO!I26 -> 87103.02 | F11: =ROUND($E$11*F10,2) -> 26130.91 | G11: 21775.76 | H11: 21775.76 | I11: 17420.6 | J11: =SUM(F11:I11)-0.04 -> 87102.99
A12: D | B12: =VLOOKUP(A12,ORÇAMENTO!$A$9:$I$39,2) -> 4 | C12: =VLOOKUP(A12,ORÇAMENTO!$A$9:$I$39,3) -> TRANSPORTE DE MATERIAL ASFÁLTICO (BDI DIFERENCIADO) | D12: FISICO | E12: =ROUND(E13/$G$2,4) -> 0.0978 | G12: 0.15 | H12: 0.55 | I12: 0.3 | J12: =SUM(F12:I12) -> 1
D13: FINANCEIRO | E13: =ORÇAMENTO!I29 -> 109890 | F13: =ROUND($E$13*F12,2) -> 0 | G13: 16483.5 | H13: 60439.5 | I13: 32967 | J13: =SUM(F13:I13)-0.02 -> 109889.98
A14: E | B14: =VLOOKUP(A14,ORÇAMENTO!$A$9:$I$39,2) -> 5 | C14: =VLOOKUP(A14,ORÇAMENTO!$A$9:$I$39,3) -> OBRAS COMPLEMENTARES | D14: FISICO | E14: =ROUND(E15/$G$2,4) -> 0.0949 | H14: 0.15 | I14: 0.85 | J14: =SUM(F14:I14) -> 1
D15: FINANCEIRO | E15: =ORÇAMENTO!I32 -> 106608 | F15: =ROUND($E$15*F14,2) -> 0 | G15: 0 | H15: 15991.2 | I15: 90616.8 | J15: =SUM(F15:I15)-0.02 -> 106607.98
A16: F | B16: =VLOOKUP(A16,ORÇAMENTO!$A$9:$I$39,2) -> 6 | C16: =VLOOKUP(A16,ORÇAMENTO!$A$9:$I$39,3) -> FORNECIMENTOS - MATERIAL ASFÁLTICO (BDI DIFERENCIADO) | D16: FISICO | E16: =ROUND(E17/$G$2,4) -> 0.5298 | G16: 0.15 | H16: 0.55 | I16: 0.3 | J16: =SUM(F16:I16) -> 1
D17: FINANCEIRO | E17: =ORÇAMENTO!I35 -> 595258.77 | F17: =ROUND($E$17*F16,2) -> 0 | G17: 89288.82 | H17: 327392.32 | I17: 178577.63 | J17: =SUM(F17:I17)-0.02 -> 595258.75
B18: TOTAL | D18: FISICO | E18: =SUM(F18:I18) -> 1 | F18: =F19/$E$19 -> 0.0873143178 | G18: 0.1654109377 | H18: 0.4247329266 | I18: 0.3225418179 | J18: =SUM(F18:I18) -> 1
D19: FINANCEIRO | E19: =E11+E9+E7+E13+E17+E15 -> 1123586.4 | F19: 98105.18 | G19: 185853.48 | H19: 477224.14 | I19: 362403.6 | J19: =SUM(F19:I19) -> 1123586.4
B21: OBSERVAÇÕES:
